bitfinex/quotes_SOLUSD_20241007
["timestamp","ask_amount","ask_price","bid_price","bid_amount"]
[1728266465405,70.10878926,150.6,150.59,6.6405]
[1728266466192,70.10878926,150.6,150.59,6.15512]
[1728266467619,70.10878926,150.6,150.58,6.6409]
[1728266467997,70.10878926,150.6,150.59,7.96846564]
[1728266468409,70.10878926,150.6,150.57,23.2438]
[1728266468614,70.10878926,150.6,150.56,6.6418]
[1728266468921,70.10878926,150.6,150.57,7.96904519]
[1728266469291,70.10878926,150.6,150.58,6.6409]
[1728266470210,70.10878926,150.6,150.56,23.245]
[1728266470407,70.10878926,150.6,150.56,16.6036]
[1728266470720,70.10878926,150.6,150.57,7.96961323]
[1728266471189,70.10878926,150.6,150.57,1.32821323]
[1728266471394,70.10878926,150.6,150.59,6.6405]
[1728266472723,70.10878926,150.6,150.59,50.668364]
[1728266473519,0.854171,150.67,150.66,6.6374]
[1728266473700,0.854171,150.67,150.65,16.5945]
[1728266474294,0.794791,150.67,150.66,1.32734057]
[1728266474494,0.794791,150.67,150.65,23.2322]
[1728266474712,0.794791,150.67,150.65,16.5945]
[1728266475123,0.794791,150.67,150.65,1.32745428]
[1728266475317,0.794791,150.67,150.65,7.96505428]
[1728266475524,0.794791,150.67,150.65,6.6376]
[1728266475713,0.794791,150.67,150.64,23.2331]
[1728266476107,0.794791,150.67,150.65,6.6378]
[1728266477513,0.794791,150.67,150.64,16.5949]
[1728266478019,0.794791,150.67,150.65,1.32728819]
[1728266478226,0.794791,150.67,150.64,16.5949]
[1728266478607,0.794791,150.67,150.6,23.2394]
[1728266478608,6.6375,150.66,150.6,23.2394]
[1728266478812,0.794791,150.67,150.6,16.5995]
[1728266479128,0.794791,150.67,150.65,6.6378]
[1728266479431,0.794791,150.67,150.63,16.5966]
[1728266479605,0.794791,150.67,150.63,23.235]
[1728266479807,0.794791,150.67,150.64,1.32747838]
[1728266480029,0.794791,150.67,150.64,1.32745201]
[1728266480205,0.794791,150.67,150.63,16.5966]
[1728266480406,0.794791,150.67,150.64,6.6383]
[1728266480731,0.794791,150.67,150.63,16.5966]
[1728266480929,0.794791,150.67,150.64,6.6382]
[1728266481225,0.794791,150.67,150.65,1.3273644]
[1728266481404,0.794791,150.67,150.65,6.6376]
[1728266481800,0.794791,150.67,150.66,1.32733698]
[1728266482014,0.794791,150.67,150.65,7.96488697]
[1728266482225,0.794791,150.67,150.65,6.6376]
[1728266482406,0.794791,150.67,150.66,23.776884]
[1728266482606,0.514492,150.76,150.66,23.776884]
[1728266482607,0.514492,150.76,150.72,6.6346]
[1728266482811,0.514492,150.76,150.69,16.5892]
[1728266482812,0.514492,150.76,150.7,6.6353]
[1728266483026,0.514492,150.76,150.71,7.96185004]
[1728266483239,0.514492,150.76,150.74,6.6337]
[1728266483813,0.514492,150.76,150.75,19.0848491]
[1728266484212,72.90970111,150.79,150.78,6.6321]
[1728266484419,72.90970111,150.79,150.77,16.5811]
[1728266484909,72.90970111,150.79,150.73,16.5852]
[1728266485536,79.54140111,150.79,150.73,23.2194]
[1728266485723,16.1862,150.78,150.73,16.5852]
[1728266485925,22.8186,150.78,150.73,16.5852]
[1728266486431,22.8187,150.78,150.71,6.6349]
[1728266487624,22.8187,150.78,150.72,6.6348]
[1728266487826,24.027864,150.77,150.68,16.591]
[1728266488011,6.6339,150.74,150.68,23.2275]
[1728266488214,6.6214,150.76,150.68,16.591]
[1728266488716,13.2547,150.76,150.7,6.6356]
[1728266488923,6.6335,150.75,150.69,6.6361]
[1728266489113,6.6214,150.76,150.68,16.591]
[1728266489319,6.6214,150.76,150.71,6.6352]
[1728266489830,13.2545,150.76,150.68,16.591]
[1728266490036,6.6343,150.74,150.67,6.6369]
[1728266490223,6.6344,150.73,150.68,1.32697995]
[1728266490420,6.6214,150.76,150.67,0.99587821]
[1728266490621,24.027864,150.75,150.64,16.5953]
[1728266491310,16.2606,150.74,150.64,16.5953]
[1728266491512,16.2606,150.74,150.63,6.6387]
[1728266491513,6.6365,150.68,150.63,6.6387]
[1728266491710,24.027864,150.73,150.6,16.5995]
[1728266492321,6.6371,150.67,150.61,6.6392]
[1728266493118,6.6365,150.69,150.62,7.96656503]
[1728266493426,6.6366,150.68,150.63,6.6387]
[1728266493631,6.6366,150.68,150.61,6.6393]
[1728266494911,6.6366,150.68,150.62,7.96656759]
[1728266496037,6.6366,150.68,150.62,6.6391]
[1728266496337,24.027864,150.73,150.6,16.5995]
[1728266496338,16.3119,150.66,150.6,16.5995]
[1728266496536,6.6384,150.64,150.56,16.6037]
[1728266496737,6.6388,150.63,150.57,6.6414]
[1728266496938,24.027864,150.65,150.52,16.6084]
[1728266497239,6.6414,150.57,150.52,23.2519]
[1728266497436,40.622864,150.65,150.52,16.6084]
[1728266497737,6.6431,150.54,150.48,16.6133]
[1728266499238,0.12549,150.58,150.48,16.6133]
[1728266499443,6.6427,150.54,150.48,16.6133]
[1728266499738,6.6427,150.54,150.49,1.32863952]
[1728266500043,6.6415,150.57,150.52,6.6436]
[1728266500214,42.5258,150.62,150.52,1.32855447]
[1728266500420,6.6412,150.58,150.53,6.643]
[1728266500635,6.6418,150.56,150.51,23.2533]
[1728266500822,6.6418,150.56,150.52,1.32844797]
[1728266501036,6.6405,150.59,150.53,6.6431]
[1728266501241,6.641,150.58,150.51,23.2533]
[1728266501429,6.6415,150.57,150.51,23.2533]
[1728266501821,6.6415,150.57,150.52,6.6435]
[1728266502121,16.6005,150.6,150.5,6.6445]
[1728266502312,6.6418,150.56,150.51,6.6439]
[1728266502515,6.6414,150.57,150.52,6.6435]
[1728266503125,6.6414,150.57,150.5,23.2548]
[1728266503457,6.6424,150.55,150.5,16.6107]
[1728266504129,40.626964,150.61,150.48,6.6451]
[1728266504336,6.6427,150.54,150.49,7.97352433]
[1728266504540,6.6422,150.56,150.49,1.32872433]
[1728266504838,6.6422,150.56,150.5,6.6445]
[1728266505041,6.6422,150.56,150.51,1.32852933]
[1728266505356,29.44821575,150.62,150.51,1.32852933]
[1728266505649,29.44821575,150.62,150.53,16.6075]
[1728266505818,6.6414,150.57,150.53,16.6075]
[1728266506237,6.641,150.58,150.53,17.93587658]
[1728266506442,6.6405,150.59,150.53,17.93587658]
[1728266506618,6.6405,150.59,150.53,23.2506]
[1728266506943,6.6408,150.59,150.54,1.32824299]
[1728266507129,46.04621575,150.62,150.51,6.644]
[1728266507321,46.04621575,150.62,150.52,1.32841737]
[1728266507642,22.5258,150.62,150.53,16.6076]
[1728266508019,29.1654,150.62,150.53,16.6076]
[1728266508222,22.5258,150.62,150.56,23.245]
[1728266508636,22.5258,150.62,150.56,16.6036]
[1728266508843,6.6402,150.6,150.56,16.6036]
[1728266509216,22.5258,150.62,150.56,16.6036]
[1728266509438,6.6398,150.61,150.57,1.32809184]
[1728266509647,22.5258,150.62,150.54,6.6427]
[1728266511154,6.6405,150.59,150.54,6.6427]
[1728266512037,6.6397,150.61,150.53,16.6078]
[1728266512237,6.6397,150.61,150.55,6.6422]
[1728266512434,6.6407,150.59,150.54,6.6427]
[1728266512633,6.6401,150.6,150.54,6.6427]
[1728266512842,6.6401,150.6,150.55,1.32818581]
[1728266513037,6.6401,150.6,150.55,7.97028581]
[1728266513257,29.1654,150.62,150.57,6.6413]
[1728266513435,15.9736,150.62,150.59,6.6405]
[1728266513640,15.9736,150.62,150.56,16.6045]
[1728266513843,22.613,150.62,150.57,7.96943161]
[1728266514150,6.6397,150.61,150.58,1.32797639]
[1728266514355,15.9736,150.62,150.58,1.32797639]
[1728266514651,15.9736,150.62,150.56,16.6045]
[1728266514652,21.8851,150.66,150.56,16.6045]
[1728266514841,6.6384,150.64,150.59,6.6405]
[1728266515055,6.6379,150.65,150.6,7.96772755]
[1728266515257,6.6379,150.65,150.6,6.6399]
[1728266515865,6.6379,150.65,150.61,1.32772351]
[1728266516067,6.6379,150.65,150.6,6.6399]
[1728266516360,6.6379,150.65,150.61,1.32772268]
[1728266516663,6.6379,150.65,150.6,6.6399]
[1728266517148,21.8851,150.66,150.53,50.0]
[1728266517149,6.6393,150.62,150.57,6.6413]
[1728266517356,6.6401,150.6,150.56,16.6044]
[1728266519640,6.6405,150.59,150.54,6.6427]
[1728266519962,6.6411,150.58,150.53,23.2509]
[1728266520262,15.051,150.57,150.49,16.6113]
[1728266520461,6.6419,150.56,150.51,6.644]
[1728266520995,15.051,150.57,150.51,6.644]
[1728266521167,15.051,150.57,150.52,7.97189446]
[1728266521168,21.6925,150.57,150.52,7.97189446]
[1728266521653,6.6418,150.56,150.51,6.644]
[1728266522167,24.027864,150.56,150.46,6.6459]
[1728266522474,40.632564,150.56,150.45,16.6159]
[1728266522759,6.6454,150.48,150.43,6.6471]
[1728266522964,6.6454,150.48,150.42,23.2681]
[1728266523156,16.6079,150.54,150.42,23.2681]
[1728266523360,6.6458,150.47,150.42,16.6201]
[1728266524168,6.6514,150.5,150.42,16.6201]
[1728266524359,6.6514,150.5,150.43,7.97672039]
[1728266524551,6.6454,150.48,150.43,7.97672039]
[1728266524869,6.6454,150.48,150.42,16.6201]
[1728266524870,6.6454,150.48,150.42,23.2681]
[1728266525255,6.6458,150.47,150.42,23.2681]
[1728266525571,6.6462,150.47,150.41,6.6484]
[1728266526155,6.6463,150.46,150.41,6.6484]
[1728266526670,6.6463,150.46,150.38,16.6236]
[1728266526671,6.6468,150.45,150.38,23.2729]
[1728266526855,22.4197,150.43,150.38,16.6236]
[1728266527181,22.4193,150.43,150.37,6.6502]
[1728266527463,15.7717,150.43,150.38,6.6497]
[1728266528557,6.6514,150.5,150.38,20.0]
[1728266528760,6.6514,150.5,150.46,6.6462]
[1728266529654,15.8853,150.51,150.46,7.97523653]
[1728266530372,15.8853,150.51,150.46,1.32903653]
[1728266530575,15.8853,150.51,150.47,6.6457]
[1728266531359,15.8853,150.51,150.45,16.6166]
[1728266531652,15.8853,150.51,150.45,23.2629]
[1728266532046,22.5293,150.51,150.46,6.6462]
[1728266532246,15.8853,150.51,150.45,16.6166]
[1728266532457,22.5293,150.51,150.45,23.2633]
[1728266532774,22.5293,150.51,150.46,7.97527842]
[1728266533359,15.8853,150.51,150.46,7.97527842]
[1728266533561,15.8853,150.51,150.46,6.6462]
[1728266533866,15.8853,150.51,150.47,6.6458]
[1728266535085,6.0988,150.54,150.48,16.6133]
[1728266535368,6.0988,150.54,150.5,6.6444]
[1728266535554,12.7419,150.54,150.48,23.2586]
[1728266535755,6.6434,150.53,150.48,23.2586]
[1728266536269,6.0988,150.54,150.48,16.6133]
[1728266537051,6.0988,150.54,150.5,6.6445]
[1728266537458,16.0458,150.55,150.49,1.32870855]
[1728266537666,16.0458,150.55,150.51,6.6439]
[1728266537973,6.1437,150.58,150.52,1.32868267]
[1728266538277,22.276,150.63,150.54,23.776884]
[1728266538451,22.276,150.63,150.55,20.0]
[1728266538658,22.276,150.63,150.6,6.64]
[1728266538659,16.268,150.63,150.6,6.64]
[1728266538959,16.268,150.63,150.6,7.96787436]
[1728266539150,16.268,150.63,150.6,6.64]
[1728266539450,16.268,150.63,150.6,7.96780607]
[1728266540076,28.8287,150.67,150.6,7.96780607]
[1728266540256,22.1916,150.67,150.6,1.32780607]
[1728266540465,6.6375,150.66,150.61,6.6396]
[1728266540772,22.1916,150.67,150.62,7.96678628]
[1728266540952,15.7881,150.67,150.63,6.6385]
[1728266541146,15.7881,150.67,150.64,1.32749425]
[1728266541367,6.3764,150.71,150.62,23.2364]
[1728266541368,6.6361,150.69,150.62,23.2364]
[1728266541569,22.4199,150.71,150.62,16.5976]
[1728266541570,6.6371,150.67,150.62,16.5976]
[1728266541768,22.4199,150.71,150.62,16.5976]
[1728266541984,22.4199,150.71,150.57,6.6132]
[1728266541985,6.6384,150.64,150.57,6.6409]
[1728266542273,22.4199,150.71,150.54,16.6058]
[1728266542471,6.6402,150.6,150.55,6.6422]
[1728266542976,6.6396,150.61,150.55,6.6422]
[1728266543176,6.6391,150.63,150.58,6.6409]
[1728266543353,6.6388,150.63,150.58,6.6409]
[1728266543557,6.6388,150.63,150.57,23.2444]
[1728266544055,16.0132,150.65,150.58,1.32806976]
[1728266544250,16.0132,150.65,150.57,16.6031]
[1728266544471,6.6389,150.63,150.57,23.2441]
[1728266544657,16.0132,150.65,150.58,1.32801292]
[1728266544857,6.6388,150.63,150.58,6.6409]
[1728266545075,16.0132,150.65,150.57,16.6031]
[1728266545385,6.6397,150.61,150.55,6.6419]
[1728266545678,16.0132,150.65,150.62,6.639]
[1728266545850,16.0132,150.65,150.61,6.6396]
[1728266546053,6.91808645,150.73,150.62,16.5976]
[1728266546054,6.6362,150.69,150.62,16.5976]
[1728266546270,6.6362,150.69,150.63,7.96612852]
[1728266546475,15.0179,150.7,150.63,6.6387]
[1728266546693,6.637,150.67,150.62,23.2367]
[1728266546971,15.0179,150.7,150.63,1.32753996]
[1728266547275,15.0179,150.7,150.65,16.5947]
[1728266547480,15.0179,150.7,150.66,6.637]
[1728266547657,15.0179,150.7,150.65,23.2325]
[1728266547976,15.0179,150.7,150.66,7.96471777]
[1728266548274,21.6536,150.7,150.65,16.5947]
[1728266548497,15.0179,150.7,150.65,23.2325]
[1728266549673,21.6538,150.7,150.65,16.5947]
[1728266549878,15.0179,150.7,150.65,23.2325]
[1728266550361,7.690492,150.7,150.65,23.2325]
[1728266550685,6.6365,150.68,150.62,6.6391]
[1728266551479,6.6365,150.68,150.61,16.598]
[1728266551684,6.6365,150.68,150.63,6.6386]
[1728266551976,14.326492,150.7,150.63,6.6386]
[1728266552181,6.6362,150.69,150.63,6.6386]
[1728266552368,14.326192,150.7,150.64,1.32741192]
[1728266552562,7.690492,150.7,150.64,23.2336]
[1728266552874,7.690492,150.7,150.65,6.6377]
[1728266553758,7.690492,150.7,150.66,1.32723545]
[1728266554179,7.690492,150.7,150.66,1.32723467]
[1728266554480,7.690492,150.7,150.65,6.6377]
[1728266554781,14.326292,150.7,150.65,6.6377]
[1728266554991,6.6365,150.69,150.64,16.5956]
[1728266555176,6.6369,150.68,150.61,20.0]
[1728266555981,6.6361,150.69,150.63,6.6383]
[1728266556490,7.690492,150.7,150.65,6.6378]
[1728266556684,7.690492,150.7,150.66,1.32726424]
[1728266556886,7.690492,150.7,150.65,6.6378]
[1728266557281,7.690492,150.7,150.66,1.32729242]
[1728266558095,7.690492,150.7,150.67,7.96415298]
[1728266558282,7.690492,150.7,150.67,1.32724816]
[1728266558875,7.690492,150.7,150.66,16.5926]
[1728266559088,22.2692,150.74,150.69,6.6357]
[1728266559466,22.2692,150.74,150.67,1.32714939]
[1728266559674,22.2692,150.74,150.68,6.1365]
[1728266559971,22.2692,150.74,150.69,1.32704195]
[1728266560383,22.2692,150.74,150.69,7.96284195]
[1728266561192,22.2692,150.74,150.69,17.91664195]
[1728266561193,15.6352,150.74,150.69,17.91664195]
[1728266561492,21.7887,150.78,150.69,1.32704195]
[1728266561678,6.6326,150.77,150.72,16.587]
[1728266561884,6.6331,150.76,150.71,6.6348]
[1728266562077,6.6331,150.76,150.72,1.3267191]
[1728266562278,6.6326,150.77,150.71,6.6348]
[1728266562477,21.7884,150.78,150.73,6.6343]
[1728266562887,6.6327,150.77,150.72,6.6347]
[1728266563086,6.6327,150.77,150.73,1.32664148]
[1728266563388,6.6327,150.77,150.72,6.6347]
[1728266563977,21.7884,150.78,150.73,7.9609537]
[1728266564292,15.1561,150.78,150.71,16.5871]
[1728266564497,6.633,150.77,150.71,6.6352]
[1728266564791,15.1561,150.78,150.69,50.0]
[1728266564973,15.1561,150.78,150.74,6.6339]
[1728266565172,72.90970111,150.79,150.78,6.6321]
[1728266566196,72.90970111,150.79,150.77,0.25098]
[1728266566402,72.90970111,150.79,150.78,20.0]
[1728266566601,72.90970111,150.79,150.78,26.6321]
[1728266567674,72.90970111,150.79,150.78,50.659964]
[1728266567971,72.90970111,150.79,150.78,50.534474]
[1728266568176,72.90970111,150.79,150.78,6.6321]
[1728266569082,72.90970111,150.79,150.77,6.6326]
[1728266569497,72.90970111,150.79,150.75,23.2161]
[1728266569784,72.90970111,150.79,150.75,16.5831]
[1728266570676,79.54150111,150.79,150.75,16.5831]
[1728266570903,79.54150111,150.79,150.71,15.0787]
[1728266571093,6.6326,150.77,150.72,6.6345]
[1728266571292,72.90970111,150.79,150.67,66.0581]
[1728266571502,6.6322,150.78,150.72,6.6347]
[1728266571909,72.90970111,150.79,150.69,50.0]
[1728266572094,6.6325,150.78,150.72,16.5869]
[1728266572294,79.54140111,150.79,150.73,6.6343]
[1728266572488,72.90970111,150.79,150.72,16.5869]
[1728266572687,79.54150111,150.79,150.72,16.5869]
[1728266572882,79.54150111,150.79,150.73,6.6343]
[1728266573102,6.6321,150.78,150.72,23.2216]
[1728266573536,6.6321,150.78,150.73,6.6342]
[1728266573696,79.54140111,150.79,150.74,1.32647461]
[1728266574485,72.90970111,150.79,150.73,6.6342]
[1728266574709,72.90970111,150.79,150.72,16.5869]
[1728266574892,6.6331,150.76,150.72,16.5869]
[1728266575385,6.6326,150.77,150.72,23.2216]
[1728266575587,6.6326,150.77,150.72,16.5869]
[1728266577510,6.6326,150.77,150.73,1.32661261]
[1728266578009,6.6326,150.77,150.72,16.5869]
[1728266578508,6.6326,150.77,150.73,1.3266152]
[1728266579692,6.6331,150.76,150.72,16.5869]
[1728266580094,72.90970111,150.79,150.7,20.0]
[1728266580095,15.3074,150.77,150.7,20.0]
[1728266580411,31.8893,150.77,150.7,20.0]
[1728266580624,31.8893,150.77,150.65,97.16929861]
[1728266580625,6.5344,150.75,150.65,16.5944]
[1728266581189,13.1679,150.75,150.69,6.6357]
[1728266581411,6.5344,150.75,150.7,1.32685755]
[1728266581592,6.5344,150.75,150.65,80.57489861]
[1728266581793,6.5344,150.75,150.71,16.5881]
[1728266581988,13.168,150.75,150.71,16.5881]
[1728266582618,6.6345,150.73,150.68,6.6362]
[1728266582802,6.5344,150.75,150.68,20.0]
[1728266583113,6.6339,150.74,150.68,20.0]
[1728266583409,13.1679,150.75,150.7,6.6356]
[1728266583593,13.1679,150.75,150.71,1.32687817]
[1728266583793,6.5344,150.75,150.71,6.6352]
[1728266584489,6.5344,150.75,150.72,1.32673182]
[1728266584814,6.5344,150.75,150.71,6.6352]
[1728266585319,6.5344,150.75,150.72,7.96141387]
[1728266585818,6.5344,150.75,150.72,6.6347]
[1728266586295,15.3074,150.77,150.73,1.32671494]
[1728266586492,15.3074,150.77,150.74,6.6338]
[1728266587192,15.3074,150.77,150.73,1.32671494]
[1728266587394,15.3074,150.77,150.73,6.6342]
[1728266587591,15.3074,150.77,150.74,1.32652447]
[1728266587797,15.3074,150.77,150.74,7.96042447]
[1728266588024,72.90970111,150.79,150.78,26.88308]
[1728266588194,72.90970111,150.79,150.78,50.659964]
[1728266588396,72.90970111,150.79,150.78,60.52572048]
[1728266588613,67.18690111,150.79,150.78,61.85161265]
[1728266588814,62.55840111,150.79,150.78,61.85161265]
[1728266588995,51.49710111,150.79,150.78,61.85161265]
[1728266589321,0.1,150.96,150.93,6.6255]
[1728266589625,0.1,150.96,150.94,6.625]
[1728266590192,0.1,150.96,150.93,16.5635]
[1728266590597,0.1,150.96,150.89,16.5677]
[1728266590792,8.04952191,150.96,150.89,23.1947]
[1728266591230,6.7243,150.96,150.89,16.5677]
[1728266591528,7.0056074,150.96,150.89,16.5677]
[1728266591697,0.1,150.96,150.91,6.6263]
[1728266592118,0.1,150.96,150.9,1.32528518]
[1728266592338,0.1,150.96,150.93,6.6255]
[1728266592518,0.1,150.96,150.92,16.564]
[1728266592519,0.1,150.96,150.94,6.6249]
[1728266592713,0.1,150.96,150.94,6.6251]
[1728266594528,0.1,150.96,150.95,1.32455769]
[1728266594730,0.1,150.96,150.94,6.6251]
[1728266594926,0.1,150.96,150.92,66.564]
[1728266595133,0.1,150.96,150.95,6.6247]
[1728266595340,0.1,150.96,150.95,26.6247]
[1728266595528,0.1,150.96,150.95,7.94919935]
[1728266595728,0.1,150.96,150.94,6.6251]
[1728266595921,0.1,150.96,150.92,16.564]
[1728266595922,0.1,150.96,150.95,6.6247]
[1728266598518,0.1,150.96,150.93,6.6255]
[1728266599224,0.1,150.96,150.94,6.6251]
[1728266599820,15.7129,150.95,150.92,16.564]
[1728266600328,15.7129,150.95,150.93,7.95043728]
[1728266601520,15.7129,150.95,150.93,1.32493728]
[1728266601727,15.7129,150.95,150.94,6.6251]
[1728266602032,15.7129,150.95,150.92,23.1897]
[1728266602449,15.7129,150.95,150.92,16.564]
[1728266602946,15.7129,150.95,150.93,7.95044243]
[1728266603118,15.7129,150.95,150.94,6.6251]
[1728266603744,0.1,150.96,150.95,26.6247]
[1728266604044,0.1,150.96,150.95,6.6247]
[1728266605438,0.1,150.96,150.92,16.564]
[1728266605831,0.1,150.96,150.94,6.6249]
[1728266606038,0.1,150.96,150.95,6.6247]
[1728266609221,0.1,150.96,150.95,26.75019]
[1728266609449,0.1,150.96,150.95,26.87568]
[1728266610440,0.1,150.96,150.95,26.6247]
[1728266611336,0.1,150.96,150.95,6.6247]
[1728266612747,0.1,150.96,150.95,27.94922766]
[1728266613057,0.1,150.96,150.95,26.6247]
[1728266613236,0.1,150.96,150.95,27.94920663]
[1728266613551,0.1,150.96,150.95,28.20018663]
[1728266613847,0.1,150.96,150.95,26.87568]
[1728266614474,0.1,150.96,150.95,28.20016581]
[1728266614753,0.854171,150.97,150.96,100.652064]
[1728266614927,7.1e-05,150.97,150.96,100.652064]
[1728266615667,7.0,151.0,150.99,70.25098]
[1728266615831,16.5199,151.09,151.07,6.6193]
[1728266617247,15.9374,151.13,151.07,6.6193]
[1728266617552,15.9374,151.13,151.09,16.5462]
[1728266617722,15.9374,151.13,151.1,6.6179]
[1728266618350,1.32522191,151.15,151.03,56.4219]
[1728266618600,6.313,151.16,151.09,6.6183]
[1728266618847,93.67482482,151.17,151.1,6.6179]
[1728266619053,93.67482482,151.17,151.08,23.1651]
[1728266619355,93.67482482,151.17,151.1,6.618]
[1728266619570,93.67482482,151.17,151.11,50.25098]
[1728266619861,93.67482482,151.17,151.1,6.618]
[1728266620232,93.67482482,151.17,151.08,16.5465]
[1728266620435,6.616,151.15,151.08,16.5465]
[1728266620653,93.67482482,151.17,151.08,16.5465]
[1728266620654,6.6165,151.14,151.09,1.32337997]
[1728266620846,15.4674,151.1,151.03,23.1727]
[1728266621036,15.4674,151.1,151.04,6.6205]
[1728266621239,15.4674,151.1,151.08,6.6189]
[1728266621557,15.4674,151.1,151.06,16.5488]
[1728266621859,15.4674,151.1,151.06,6.6197]
[1728266622364,15.4674,151.1,151.04,6.6204]
[1728266622546,15.4674,151.1,151.05,6.6201]
[1728266622737,15.4674,151.1,151.02,16.5538]
[1728266623066,15.4674,151.1,151.04,6.6206]
[1728266623764,22.0859,151.1,151.02,16.5538]
[1728266624064,15.4674,151.1,151.05,6.62]
[1728266624355,15.4674,151.1,151.02,16.5538]
[1728266624543,6.6186,151.09,151.02,23.175]
[1728266624740,6.6186,151.09,151.03,6.6211]
[1728266624943,22.0856,151.1,151.02,16.5538]
[1728266625157,15.4674,151.1,151.05,6.6202]
[1728266625358,15.4674,151.1,151.03,6.6208]
[1728266625663,6.619,151.08,151.02,16.5538]
[1728266625839,23.776884,151.09,151.02,16.5538]
[1728266626268,6.619,151.08,151.02,16.5538]
[1728266626467,7.94422191,151.08,151.02,16.5538]
[1728266626635,23.776884,151.07,151.02,16.5538]
[1728266626841,30.396384,151.07,151.02,16.5538]
[1728266627059,30.396384,151.07,150.96,50.0]
[1728266627060,31.72160591,151.07,150.99,6.6226]
[1728266627257,30.396384,151.07,151.0,6.6224]
[1728266627466,23.776884,151.07,150.98,16.558]
[1728266627656,6.6201,151.06,150.99,6.6228]
[1728266628158,6.6201,151.06,151.0,6.6224]
[1728266628366,6.6201,151.06,150.98,23.181]
[1728266628659,6.6201,151.06,150.98,16.558]
[1728266628868,23.776884,151.07,150.98,16.558]
[1728266629053,21.6143,151.06,150.98,16.558]
[1728266629359,23.776884,151.05,150.98,23.1812]
[1728266629565,23.776884,151.05,150.98,16.558]
[1728266629860,6.6208,151.04,150.98,23.1813]
[1728266630063,28.2345,151.06,151.0,6.6223]
[1728266630266,28.2345,151.06,151.01,1.32426823]
[1728266630470,21.6143,151.06,150.98,23.181]
[1728266630644,23.776884,151.05,150.98,16.558]
[1728266630963,30.397584,151.05,150.98,16.558]
[1728266631270,30.397584,151.05,150.98,17.88246581]
[1728266631562,6.6218,151.02,150.96,20.0]
[1728266631765,6.6212,151.03,150.96,6.6241]
[1728266631966,15.1222,151.0,150.94,16.5625]
[1728266632144,6.624,150.97,150.9,16.5666]
[1728266632468,6.6239,150.97,150.91,6.6263]
[1728266632666,23.776884,150.96,150.91,6.6263]
[1728266633251,6.0415,150.99,150.92,1.32508558]
[1728266633450,23.776884,150.98,150.92,7.95088558]
[1728266633660,30.400484,150.98,150.92,6.6258]
[1728266633951,23.776884,150.96,150.9,23.193]
[1728266634144,23.776884,150.96,150.91,6.6263]
[1728266634343,1.32522191,150.95,150.9,16.5666]
[1728266634569,7.94992191,150.95,150.9,16.5666]
[1728266634746,6.6247,150.95,150.9,16.5666]
[1728266634943,23.776884,150.96,150.92,6.626]
[1728266635259,6.6238,150.98,150.92,6.626]
[1728266635260,23.776884,150.97,150.92,6.626]
[1728266635464,1.32522191,150.96,150.9,23.193]
[1728266635771,23.776884,150.95,150.9,23.193]
[1728266636568,23.776884,150.95,150.9,6.6268]
[1728266636867,23.776884,150.95,150.92,6.626]
[1728266637077,6.0415,150.99,150.93,6.6255]
[1728266637247,30.400384,150.98,150.92,23.1904]
[1728266637763,6.0415,150.99,150.93,7.95050658]
[1728266638177,6.0415,150.99,150.95,6.6246]
[1728266638362,6.0415,150.99,150.96,6.6241]
[1728266638672,6.0415,150.99,150.96,6.6242]
[1728266638880,6.0415,150.99,150.95,16.5616]
[1728266639251,6.0415,150.99,150.96,1.32484305]
[1728266639479,6.0415,150.99,150.97,6.6237]
[1728266639858,6.0415,150.99,150.96,1.32484305]